[Event "Elite Hotels Open 2024"]
[Site "Elite Stadshotellet, Kungsgatan 6, Vaxjo, Sweden"]
[Date "2024.02.09"]
[Round "1.1"]
[White "Bergman, Nils"]
[Black "Hillarp, Tiger"]
[Result "0-1"]
[TimeControl "15 minutes + 5 seconds per move from move one (Round 1 - 4) / 90 minutes + 30 seconds per move from move one (Round 5 - 8)"]
[BlackTitle "GM"]
[WhiteFideId "1772007"]
[BlackFideId "1700812"]
[WhiteElo "1878"]
[BlackElo "2476"]

1. d4 {[%clk 00:15:05]} {[%emt 00:00:04]} g6 {[%clk 00:15:09]} {[%emt
00:00:02]} 2. Bf4 {[%clk 00:14:48]} {[%emt 00:00:21]} Bg7 {[%clk 00:15:12]}
{[%emt 00:00:02]} 3. Nc3 {[%clk 00:14:51]} {[%emt 00:00:02]} a6 {[%clk
00:15:09]} {[%emt 00:00:09]} 4. e4 {[%clk 00:14:31]} {[%emt 00:00:24]} d6
{[%clk 00:15:13]} {[%emt 00:00:02]} 5. Qd2 {[%clk 00:14:03]} {[%emt 00:00:34]}
b5 {[%clk 00:15:11]} {[%emt 00:00:07]} 6. f3 {[%clk 00:13:14]} {[%emt
00:00:54]} Nd7 {[%clk 00:15:05]} {[%emt 00:00:11]} 7. Nge2 {[%clk 00:11:43]}
{[%emt 00:01:36]} Bb7 {[%clk 00:15:00]} {[%emt 00:00:10]} 8. h4 {[%clk
00:11:22]} {[%emt 00:00:26]} h5 {[%clk 00:15:02]} {[%emt 00:00:02]} 9. a3
{[%clk 00:11:15]} {[%emt 00:00:14]} c5 {[%clk 00:14:41]} {[%emt 00:00:25]} 10.
Bg5 {[%clk 00:09:26]} {[%emt 00:01:54]} Ngf6 {[%clk 00:12:52]} {[%emt
00:01:54]} 11. Qe3 {[%clk 00:08:02]} {[%emt 00:01:29]} Rc8 {[%clk 00:12:11]}
{[%emt 00:00:46]} 12. e5 {[%clk 00:07:12]} {[%emt 00:00:55]} cxd4 {[%clk
00:12:14]} {[%emt 00:00:02]} 13. Nxd4 {[%clk 00:06:18]} {[%emt 00:00:59]} Nxe5
{[%clk 00:12:15]} {[%emt 00:00:03]} 14. Be2 {[%clk 00:05:35]} {[%emt 00:00:48]}
O-O {[%clk 00:11:24]} {[%emt 00:00:56]} 15. O-O-O {[%clk 00:04:01]} {[%emt
00:01:40]} Re8 {[%clk 00:08:26]} {[%emt 00:03:03]} 16. Rhg1 {[%clk 00:02:43]}
{[%emt 00:01:23]} Qb6 {[%clk 00:08:11]} {[%emt 00:00:19]} 17. g4 {[%clk
00:02:10]} {[%emt 00:00:38]} hxg4 {[%clk 00:07:55]} {[%emt 00:00:21]} 18. fxg4
{[%clk 00:02:12]} {[%emt 00:00:02]} Nc4 {[%clk 00:06:20]} {[%emt 00:01:40]} 19.
Qg3 {[%clk 00:01:07]} {[%emt 00:01:11]} Ne4 {[%clk 00:04:59]} {[%emt 00:01:25]}
20. Nxe4 {[%clk 00:00:40]} {[%emt 00:00:32]} Bxe4 {[%clk 00:05:01]} {[%emt
00:00:03]} 21. c3 {[%clk 00:00:12]} {[%emt 00:00:35]} Nxa3 {[%clk 00:03:44]}
{[%emt 00:01:21]} 22. bxa3 {[%clk 00:00:07]} {[%emt 00:00:11]} Bxd4 {[%clk
00:03:46]} {[%emt 00:00:02]} 23. Bd2 {[%clk 00:00:06]} {[%emt 00:00:06]} b4
{[%clk 00:03:25]} {[%emt 00:00:26]} 24. h5 {[%clk 00:00:06]} {[%emt 00:00:05]}
bxc3 {[%clk 00:03:13]} {[%emt 00:00:18]} 0-1

[Event "Elite Hotels Open 2024"]
[Site "Elite Stadshotellet, Kungsgatan 6, Vaxjo, Sweden"]
[Date "2024.02.09"]
[Round "1.2"]
[White "Pantzar, Milton"]
[Black "Johnsson, Marcus"]
[Result "1-0"]
[TimeControl "15 minutes + 5 seconds per move from move one (Round 1 - 4) / 90 minutes + 30 seconds per move from move one (Round 5 - 8)"]
[WhiteTitle "IM"]
[WhiteFideId "1721003"]
[BlackFideId "1733966"]
[WhiteElo "2468"]
[BlackElo "1877"]

1. d4 {[%clk 00:15:07]} {[%emt 00:00:02]} Nf6 {[%clk 00:15:04]} {[%emt
00:00:06]} 2. Nf3 {[%clk 00:15:10]} {[%emt 00:00:02]} c5 {[%clk 00:15:02]}
{[%emt 00:00:07]} 3. d5 {[%clk 00:15:11]} {[%emt 00:00:04]} d6 {[%clk
00:14:14]} {[%emt 00:00:54]} 4. Nc3 {[%clk 00:15:05]} {[%emt 00:00:11]} g6
{[%clk 00:14:13]} {[%emt 00:00:06]} 5. e4 {[%clk 00:14:46]} {[%emt 00:00:23]}
Bg7 {[%clk 00:13:57]} {[%emt 00:00:22]} 6. h3 {[%clk 00:14:16]} {[%emt
00:00:35]} O-O {[%clk 00:13:56]} {[%emt 00:00:05]} 7. Bc4 {[%clk 00:14:04]}
{[%emt 00:00:17]} a6 {[%clk 00:13:53]} {[%emt 00:00:09]} 8. a4 {[%clk
00:14:06]} {[%emt 00:00:03]} b6 {[%clk 00:12:26]} {[%emt 00:01:32]} 9. O-O
{[%clk 00:14:04]} {[%emt 00:00:06]} Qc7 {[%clk 00:12:22]} {[%emt 00:00:09]} 10.
Re1 {[%clk 00:13:02]} {[%emt 00:01:07]} Nbd7 {[%clk 00:11:41]} {[%emt
00:00:47]} 11. Bf4 {[%clk 00:12:59]} {[%emt 00:00:07]} Nh5 {[%clk 00:11:09]}
{[%emt 00:00:37]} 12. Bh2 {[%clk 00:12:44]} {[%emt 00:00:20]} Ne5 {[%clk
00:11:04]} {[%emt 00:00:10]} 13. Be2 {[%clk 00:12:45]} {[%emt 00:00:04]} Nf6
{[%clk 00:09:36]} {[%emt 00:01:33]} 14. Nd2 {[%clk 00:12:14]} {[%emt 00:00:36]}
Ned7 {[%clk 00:08:45]} {[%emt 00:00:57]} 15. Nc4 {[%clk 00:11:52]} {[%emt
00:00:26]} Ne8 {[%clk 00:08:19]} {[%emt 00:00:31]} 16. Qd2 {[%clk 00:10:16]}
{[%emt 00:01:41]} Rb8 {[%clk 00:08:17]} {[%emt 00:00:08]} 17. Ne3 {[%clk
00:10:14]} {[%emt 00:00:06]} Bd4 {[%clk 00:06:52]} {[%emt 00:01:30]} 18. Bf1
{[%clk 00:09:30]} {[%emt 00:00:49]} Ndf6 {[%clk 00:06:43]} {[%emt 00:00:14]} 19.
Nc4 {[%clk 00:08:33]} {[%emt 00:01:02]} b5 {[%clk 00:06:22]} {[%emt 00:00:27]}
20. axb5 {[%clk 00:08:36]} {[%emt 00:00:02]} axb5 {[%clk 00:06:25]} {[%emt
00:00:02]} 21. Nxb5 {[%clk 00:08:33]} {[%emt 00:00:08]} Rxb5 {[%clk 00:04:47]}
{[%emt 00:01:43]} 22. c3 {[%clk 00:08:36]} {[%emt 00:00:02]} Bxf2+ {[%clk
00:04:09]} {[%emt 00:00:43]} 23. Qxf2 {[%clk 00:08:36]} {[%emt 00:00:04]} Rb7
{[%clk 00:03:27]} {[%emt 00:00:47]} 24. e5 {[%clk 00:06:14]} {[%emt 00:02:28]}
Nxd5 {[%clk 00:03:11]} {[%emt 00:00:20]} 25. Rad1 {[%clk 00:05:56]} {[%emt
00:00:23]} Be6 {[%clk 00:03:07]} {[%emt 00:00:09]} 26. Qf3 {[%clk 00:05:49]}
{[%emt 00:00:12]} Nb6 {[%clk 00:02:53]} {[%emt 00:00:20]} 27. exd6 {[%clk
00:05:45]} {[%emt 00:00:09]} exd6 {[%clk 00:02:38]} {[%emt 00:00:20]} 28. Nxd6
{[%clk 00:05:46]} {[%emt 00:00:04]} Nxd6 {[%clk 00:01:58]} {[%emt 00:00:45]} 29.
Bxd6 {[%clk 00:05:48]} {[%emt 00:00:02]} Qc8 {[%clk 00:01:46]} {[%emt
00:00:18]} 30. Bxf8 {[%clk 00:05:50]} {[%emt 00:00:02]} Kxf8 {[%clk 00:01:47]}
{[%emt 00:00:04]} 31. Rxe6 {[%clk 00:05:47]} {[%emt 00:00:08]} 1-0

[Event "Elite Hotels Open 2024"]
[Site "Elite Stadshotellet, Kungsgatan 6, Vaxjo, Sweden"]
[Date "2024.02.09"]
[Round "1.3"]
[White "Gustafsson, Simon"]
[Black "Seo, Jung Min"]
[Result "0-1"]
[TimeControl "15 minutes + 5 seconds per move from move one (Round 1 - 4) / 90 minutes + 30 seconds per move from move one (Round 5 - 8)"]
[BlackTitle "IM"]
[WhiteFideId "1763997"]
[BlackFideId "1734687"]
[WhiteElo "1875"]
[BlackElo "2466"]

1. e4 {[%clk 00:15:08]} {[%emt 00:00:01]} c5 {[%clk 00:15:09]} 2. Nf3 {[%clk
00:15:10]} {[%emt 00:00:03]} Nc6 {[%clk 00:15:13]} 3. d4 {[%clk 00:15:08]}
{[%emt 00:00:08]} cxd4 {[%clk 00:15:17]} {[%emt 00:00:01]} 4. Nxd4 {[%clk
00:15:12]} {[%emt 00:00:02]} e6 {[%clk 00:15:21]} 5. c4 {[%clk 00:14:55]}
{[%emt 00:00:23]} Nf6 {[%clk 00:14:35]} {[%emt 00:00:50]} 6. Nc3 {[%clk
00:14:58]} {[%emt 00:00:03]} Bb4 {[%clk 00:14:26]} {[%emt 00:00:14]} 7. Qd3
{[%clk 00:14:52]} {[%emt 00:00:10]} Ne5 {[%clk 00:13:14]} {[%emt 00:01:17]} 8.
Qg3 {[%clk 00:14:42]} {[%emt 00:00:15]} Ng6 {[%clk 00:13:09]} {[%emt 00:00:11]}
9. Bd3 {[%clk 00:13:11]} {[%emt 00:01:35]} d6 {[%clk 00:12:28]} {[%emt
00:00:45]} 10. O-O {[%clk 00:12:44]} {[%emt 00:00:33]} O-O {[%clk 00:12:27]}
{[%emt 00:00:06]} 11. f4 {[%clk 00:11:45]} {[%emt 00:01:03]} Bc5 {[%clk
00:11:34]} {[%emt 00:00:59]} 12. Be3 {[%clk 00:11:40]} {[%emt 00:00:09]} e5
{[%clk 00:11:36]} {[%emt 00:00:03]} 13. fxe5 {[%clk 00:10:57]} {[%emt
00:00:48]} Ng4 {[%clk 00:09:33]} {[%emt 00:02:08]} 14. Nf5 {[%clk 00:09:52]}
{[%emt 00:01:11]} Nxe3 {[%clk 00:09:08]} {[%emt 00:00:30]} 15. Nxe3 {[%clk
00:09:53]} {[%emt 00:00:04]} Nxe5 {[%clk 00:09:04]} {[%emt 00:00:09]} 16. Be2
{[%clk 00:09:09]} {[%emt 00:00:48]} Be6 {[%clk 00:05:41]} {[%emt 00:03:28]} 17.
Kh1 {[%clk 00:08:19]} {[%emt 00:00:55]} Bxe3 {[%clk 00:05:40]} {[%emt
00:00:06]} 18. Qxe3 {[%clk 00:08:22]} {[%emt 00:00:02]} Nxc4 {[%clk 00:05:43]}
{[%emt 00:00:02]} 19. Bxc4 {[%clk 00:07:27]} {[%emt 00:01:01]} Bxc4 {[%clk
00:05:47]} 20. Rfd1 {[%clk 00:06:32]} {[%emt 00:00:58]} Qf6 {[%clk 00:03:40]}
{[%emt 00:02:12]} 21. Qd4 {[%clk 00:06:13]} {[%emt 00:00:25]} Qxd4 {[%clk
00:03:44]} {[%emt 00:00:02]} 22. Rxd4 {[%clk 00:06:16]} Be6 {[%clk 00:03:41]}
{[%emt 00:00:08]} 23. Rxd6 {[%clk 00:06:05]} {[%emt 00:00:16]} Rac8 {[%clk
00:03:44]} {[%emt 00:00:02]} 24. Rad1 {[%clk 00:05:25]} {[%emt 00:00:45]} h6
{[%clk 00:03:44]} {[%emt 00:00:05]} 25. Kg1 {[%clk 00:05:21]} {[%emt 00:00:09]}
Rfe8 {[%clk 00:03:23]} {[%emt 00:00:27]} 26. Kf2 {[%clk 00:04:55]} {[%emt
00:00:31]} Kf8 {[%clk 00:03:27]} 27. R1d2 {[%clk 00:04:32]} {[%emt 00:00:29]}
Rc5 {[%clk 00:03:11]} {[%emt 00:00:20]} 28. Rd8 {[%clk 00:03:29]} {[%emt
00:01:07]} Ke7 {[%clk 00:02:42]} {[%emt 00:00:34]} 29. Rxe8+ {[%clk 00:03:32]}
{[%emt 00:00:02]} Kxe8 {[%clk 00:02:47]} {[%emt 00:00:02]} 30. Ke3 {[%clk
00:03:27]} {[%emt 00:00:10]} Rh5 {[%clk 00:02:31]} {[%emt 00:00:20]} 31. g3
{[%clk 00:03:05]} {[%emt 00:00:27]} Ra5 {[%clk 00:02:24]} {[%emt 00:00:13]} 32.
a3 {[%clk 00:03:09]} {[%emt 00:00:01]} Rc5 {[%clk 00:02:13]} {[%emt 00:00:15]}
33. Nd5 {[%clk 00:02:56]} {[%emt 00:00:19]} Bxd5 {[%clk 00:02:06]} {[%emt
00:00:12]} 34. exd5 {[%clk 00:02:59]} Kd7 {[%clk 00:02:04]} {[%emt 00:00:07]}
35. Rf2 {[%clk 00:02:17]} {[%emt 00:00:47]} f6 {[%clk 00:02:00]} {[%emt
00:00:09]} 36. Ke4 {[%clk 00:01:58]} {[%emt 00:00:24]} Kd6 {[%clk 00:02:03]}
{[%emt 00:00:02]} 37. Rd2 {[%clk 00:02:00]} {[%emt 00:00:03]} g6 {[%clk
00:02:06]} {[%emt 00:00:02]} 38. g4 {[%clk 00:01:57]} {[%emt 00:00:09]} Rc4+
{[%clk 00:02:10]} {[%emt 00:00:01]} 39. Kf3 {[%clk 00:01:57]} {[%emt 00:00:05]}
b5 {[%clk 00:01:57]} {[%emt 00:00:18]} 40. h3 {[%clk 00:01:36]} {[%emt
00:00:25]} a5 {[%clk 00:01:27]} {[%emt 00:00:35]} 41. Ke3 {[%clk 00:01:36]}
{[%emt 00:00:05]} b4 {[%clk 00:01:02]} {[%emt 00:00:31]} 42. axb4 {[%clk
00:01:19]} {[%emt 00:00:22]} Rxb4 {[%clk 00:01:06]} {[%emt 00:00:01]} 43. Kf3
{[%clk 00:01:12]} {[%emt 00:00:11]} Rb3+ {[%clk 00:00:58]} {[%emt 00:00:12]} 44.
Kg2 {[%clk 00:01:04]} {[%emt 00:00:14]} a4 {[%clk 00:00:40]} {[%emt 00:00:23]}
45. Kh2 {[%clk 00:00:38]} {[%emt 00:00:32]} Rb5 {[%clk 00:00:35]} {[%emt
00:00:10]} 46. Rd4 {[%clk 00:00:24]} {[%emt 00:00:19]} Rxb2+ {[%clk 00:00:38]}
{[%emt 00:00:02]} 47. Kg3 {[%clk 00:00:28]} a3 {[%clk 00:00:43]} 48. Ra4 {[%clk
00:00:18]} {[%emt 00:00:15]} Rb3+ {[%clk 00:00:14]} {[%emt 00:00:34]} 49. Kf4
{[%clk 00:00:07]} {[%emt 00:00:16]} Kxd5 {[%clk 00:00:17]} {[%emt 00:00:02]} 50.
Ra6 {[%clk 00:00:08]} {[%emt 00:00:03]} Rxh3 {[%clk 00:00:11]} {[%emt
00:00:11]} 51. Rxf6 {[%clk 00:00:09]} {[%emt 00:00:04]} g5+ {[%clk 00:00:15]}
52. Ke3 {[%clk 00:00:11]} {[%emt 00:00:03]} 0-1

[Event "Elite Hotels Open 2024"]
[Site "Elite Stadshotellet, Kungsgatan 6, Vaxjo, Sweden"]
[Date "2024.02.09"]
[Round "1.4"]
[White "Hector, Jonny"]
[Black "Alsaied Ali, Firas"]
[Result "1-0"]
[TimeControl "15 minutes + 5 seconds per move from move one (Round 1 - 4) / 90 minutes + 30 seconds per move from move one (Round 5 - 8)"]
[WhiteTitle "GM"]
[WhiteFideId "1700090"]
[BlackFideId "1730924"]
[WhiteElo "2449"]
[BlackElo "1867"]

1. e4 {[%clk 00:15:06]} {[%emt 00:00:02]} d5 {[%clk 00:14:53]} {[%emt
00:00:18]} 2. exd5 {[%clk 00:15:06]} {[%emt 00:00:04]} Qxd5 {[%clk 00:14:54]}
{[%emt 00:00:05]} 3. Nf3 {[%clk 00:15:05]} {[%emt 00:00:06]} Nf6 {[%clk
00:14:48]} {[%emt 00:00:12]} 4. Be2 {[%clk 00:15:05]} {[%emt 00:00:05]} g6
{[%clk 00:13:58]} {[%emt 00:00:56]} 5. O-O {[%clk 00:15:00]} {[%emt 00:00:08]}
Bg7 {[%clk 00:14:01]} {[%emt 00:00:04]} 6. c4 {[%clk 00:14:55]} {[%emt
00:00:09]} Qd8 {[%clk 00:13:45]} {[%emt 00:00:21]} 7. d4 {[%clk 00:14:54]}
{[%emt 00:00:05]} O-O {[%clk 00:13:45]} {[%emt 00:00:05]} 8. Nc3 {[%clk
00:14:56]} {[%emt 00:00:03]} b6 {[%clk 00:12:39]} {[%emt 00:01:11]} 9. Bg5
{[%clk 00:14:38]} {[%emt 00:00:22]} Bb7 {[%clk 00:12:34]} {[%emt 00:00:11]} 10.
Qc2 {[%clk 00:14:08]} {[%emt 00:00:34]} Na6 {[%clk 00:12:25]} {[%emt 00:00:14]}
11. Rad1 {[%clk 00:14:05]} {[%emt 00:00:09]} Qe8 {[%clk 00:11:09]} {[%emt
00:01:22]} 12. Rfe1 {[%clk 00:13:56]} {[%emt 00:00:13]} h6 {[%clk 00:10:25]}
{[%emt 00:00:50]} 13. Bf4 {[%clk 00:13:53]} {[%emt 00:00:06]} c6 {[%clk
00:10:13]} {[%emt 00:00:18]} 14. Bf1 {[%clk 00:13:23]} {[%emt 00:00:34]} Nh5
{[%clk 00:09:52]} {[%emt 00:00:27]} 15. Be5 {[%clk 00:12:46]} {[%emt 00:00:42]}
Qd7 {[%clk 00:09:25]} {[%emt 00:00:31]} 16. Bxg7 {[%clk 00:12:42]} {[%emt
00:00:08]} Kxg7 {[%clk 00:09:19]} {[%emt 00:00:12]} 17. Ne5 {[%clk 00:12:29]}
{[%emt 00:00:17]} Qc7 {[%clk 00:09:20]} {[%emt 00:00:06]} 18. a3 {[%clk
00:12:24]} {[%emt 00:00:09]} Nb8 {[%clk 00:09:22]} {[%emt 00:00:03]} 19. d5
{[%clk 00:12:06]} {[%emt 00:00:22]} Nd7 {[%clk 00:08:51]} {[%emt 00:00:37]} 20.
Nxc6 {[%clk 00:11:23]} {[%emt 00:00:48]} Bxc6 {[%clk 00:08:44]} {[%emt
00:00:12]} 21. dxc6 {[%clk 00:11:26]} {[%emt 00:00:02]} Qxc6 {[%clk 00:08:47]}
{[%emt 00:00:02]} 22. Rxe7 {[%clk 00:11:23]} {[%emt 00:00:07]} Nhf6 {[%clk
00:08:16]} {[%emt 00:00:35]} 23. Nb5 {[%clk 00:11:14]} {[%emt 00:00:14]} a6
{[%clk 00:05:57]} {[%emt 00:02:25]} 24. Nd4 {[%clk 00:11:14]} {[%emt 00:00:05]}
Qc8 {[%clk 00:04:31]} {[%emt 00:01:31]} 25. Ne6+ {[%clk 00:11:11]} {[%emt
00:00:07]} Kg8 {[%clk 00:04:35]} {[%emt 00:00:02]} 26. Nxf8 {[%clk 00:11:01]}
{[%emt 00:00:14]} Nxf8 {[%clk 00:04:38]} {[%emt 00:00:03]} 27. Qc3 {[%clk
00:10:40]} {[%emt 00:00:26]} Qc6 {[%clk 00:04:05]} {[%emt 00:00:38]} 28. Qf3
{[%clk 00:10:11]} {[%emt 00:00:33]} Qxf3 {[%clk 00:03:34]} {[%emt 00:00:37]} 29.
gxf3 {[%clk 00:10:13]} {[%emt 00:00:02]} Ne6 {[%clk 00:03:33]} {[%emt
00:00:07]} 30. Rb7 {[%clk 00:10:15]} {[%emt 00:00:03]} a5 {[%clk 00:02:39]}
{[%emt 00:01:00]} 31. Rxb6 {[%clk 00:10:14]} {[%emt 00:00:05]} Ng5 {[%clk
00:02:22]} {[%emt 00:00:21]} 32. Bg2 {[%clk 00:10:17]} {[%emt 00:00:03]} Rc8
{[%clk 00:02:12]} {[%emt 00:00:15]} 33. Rxf6 {[%clk 00:10:18]} {[%emt
00:00:04]} 1-0

[Event "Elite Hotels Open 2024"]
[Site "Elite Stadshotellet, Kungsgatan 6, Vaxjo, Sweden"]
[Date "2024.02.09"]
[Round "1.5"]
[White "Kingsley, Elias"]
[Black "Johansson, Linus"]
[Result "0-1"]
[TimeControl "15 minutes + 5 seconds per move from move one (Round 1 - 4) / 90 minutes + 30 seconds per move from move one (Round 5 - 8)"]
[BlackTitle "IM"]
[WhiteFideId "1775006"]
[BlackFideId "1711113"]
[WhiteElo "1861"]
[BlackElo "2434"]

1. c4 {[%clk 00:15:08]} e6 {[%clk 00:14:30]} {[%emt 00:00:40]} 2. Nc3 {[%clk
00:14:56]} {[%emt 00:00:18]} d5 {[%clk 00:14:34]} {[%emt 00:00:02]} 3. d4
{[%clk 00:14:59]} {[%emt 00:00:02]} Nf6 {[%clk 00:14:30]} {[%emt 00:00:09]} 4.
Nf3 {[%clk 00:14:59]} {[%emt 00:00:04]} Be7 {[%clk 00:13:20]} {[%emt 00:01:14]}
5. Bg5 {[%clk 00:14:46]} {[%emt 00:00:19]} O-O {[%clk 00:13:18]} {[%emt
00:00:08]} 6. e3 {[%clk 00:14:49]} {[%emt 00:00:02]} h6 {[%clk 00:13:10]}
{[%emt 00:00:13]} 7. Bh4 {[%clk 00:14:48]} {[%emt 00:00:05]} Ne4 {[%clk
00:12:44]} {[%emt 00:00:31]} 8. Bxe7 {[%clk 00:14:38]} {[%emt 00:00:15]} Qxe7
{[%clk 00:12:47]} {[%emt 00:00:02]} 9. cxd5 {[%clk 00:13:47]} {[%emt 00:00:56]}
Nxc3 {[%clk 00:12:32]} {[%emt 00:00:20]} 10. bxc3 {[%clk 00:13:50]} {[%emt
00:00:02]} exd5 {[%clk 00:12:36]} {[%emt 00:00:02]} 11. Bd3 {[%clk 00:13:45]}
{[%emt 00:00:09]} c5 {[%clk 00:12:35]} {[%emt 00:00:06]} 12. O-O {[%clk
00:13:30]} {[%emt 00:00:20]} Nc6 {[%clk 00:12:34]} {[%emt 00:00:06]} 13. Re1
{[%clk 00:12:32]} {[%emt 00:01:04]} Qf6 {[%clk 00:07:51]} {[%emt 00:04:48]} 14.
e4 {[%clk 00:11:19]} {[%emt 00:01:17]} dxe4 {[%clk 00:07:46]} {[%emt 00:00:10]}
15. Bxe4 {[%clk 00:11:22]} {[%emt 00:00:02]} cxd4 {[%clk 00:07:34]} {[%emt
00:00:17]} 16. cxd4 {[%clk 00:11:01]} {[%emt 00:00:26]} Bg4 {[%clk 00:07:30]}
{[%emt 00:00:10]} 17. d5 {[%clk 00:10:39]} {[%emt 00:00:27]} Rad8 {[%clk
00:07:09]} {[%emt 00:00:26]} 18. h3 {[%clk 00:10:31]} {[%emt 00:00:11]} Bxf3
{[%clk 00:07:11]} {[%emt 00:00:04]} 19. Qxf3 {[%clk 00:10:12]} {[%emt
00:00:23]} Qxf3 {[%clk 00:07:11]} {[%emt 00:00:06]} 20. gxf3 {[%clk 00:09:23]}
{[%emt 00:00:54]} Na5 {[%clk 00:06:54]} {[%emt 00:00:22]} 21. f4 {[%clk
00:08:50]} {[%emt 00:00:38]} Nc4 {[%clk 00:06:52]} {[%emt 00:00:07]} 22. Rab1
{[%clk 00:08:12]} {[%emt 00:00:43]} Nd6 {[%clk 00:06:53]} {[%emt 00:00:05]} 23.
Bf3 {[%clk 00:07:56]} {[%emt 00:00:20]} Rfe8 {[%clk 00:06:47]} {[%emt
00:00:11]} 24. Re5 {[%clk 00:06:59]} {[%emt 00:01:02]} Kf8 {[%clk 00:06:29]}
{[%emt 00:00:24]} 25. Rc1 {[%clk 00:06:18]} {[%emt 00:00:45]} Rc8 {[%clk
00:06:21]} {[%emt 00:00:13]} 26. Rxe8+ {[%clk 00:05:41]} {[%emt 00:00:42]} Kxe8
{[%clk 00:06:24]} {[%emt 00:00:01]} 27. Rxc8+ {[%clk 00:05:29]} {[%emt
00:00:17]} Nxc8 {[%clk 00:06:29]} {[%emt 00:00:02]} 28. Kf1 {[%clk 00:05:19]}
{[%emt 00:00:15]} Ke7 {[%clk 00:06:18]} {[%emt 00:00:15]} 29. Ke2 {[%clk
00:05:19]} {[%emt 00:00:05]} Kd6 {[%clk 00:06:21]} {[%emt 00:00:02]} 30. Kd3
{[%clk 00:05:19]} {[%emt 00:00:06]} Kc5 {[%clk 00:06:22]} {[%emt 00:00:04]} 31.
Kc3 {[%clk 00:04:38]} {[%emt 00:00:46]} b5 {[%clk 00:05:28]} {[%emt 00:00:59]}
32. Kd3 {[%clk 00:03:15]} {[%emt 00:01:28]} Ne7 {[%clk 00:05:16]} {[%emt
00:00:17]} 33. Ke4 {[%clk 00:02:39]} {[%emt 00:00:41]} Nxd5 {[%clk 00:05:03]}
{[%emt 00:00:19]} 34. Ke5 {[%clk 00:02:41]} {[%emt 00:00:03]} Nb4 {[%clk
00:04:48]} {[%emt 00:00:19]} 0-1

[Event "Elite Hotels Open 2024"]
[Site "Elite Stadshotellet, Kungsgatan 6, Vaxjo, Sweden"]
[Date "2024.02.09"]
[Round "1.6"]
[White "Sorensen, Hampus"]
[Black "Eriksson, Per"]
[Result "1-0"]
[TimeControl "15 minutes + 5 seconds per move from move one (Round 1 - 4) / 90 minutes + 30 seconds per move from move one (Round 5 - 8)"]
[WhiteTitle "IM"]
[WhiteFideId "8703884"]
[BlackFideId "1727303"]
[WhiteElo "2430"]
[BlackElo "1857"]

1. e4 {[%clk 00:15:03]} {[%emt 00:00:07]} c5 {[%clk 00:15:08]} {[%emt
00:00:03]} 2. Nf3 {[%clk 00:15:06]} {[%emt 00:00:02]} g6 {[%clk 00:15:10]}
{[%emt 00:00:04]} 3. c3 {[%clk 00:15:06]} {[%emt 00:00:05]} Bg7 {[%clk
00:15:09]} {[%emt 00:00:05]} 4. d4 {[%clk 00:15:05]} {[%emt 00:00:06]} cxd4
{[%clk 00:15:02]} {[%emt 00:00:12]} 5. cxd4 {[%clk 00:15:08]} {[%emt 00:00:02]}
d6 {[%clk 00:15:01]} {[%emt 00:00:06]} 6. h3 {[%clk 00:14:53]} {[%emt
00:00:20]} e6 {[%clk 00:14:55]} {[%emt 00:00:10]} 7. Nc3 {[%clk 00:14:45]}
{[%emt 00:00:14]} Ne7 {[%clk 00:14:54]} {[%emt 00:00:06]} 8. Be2 {[%clk
00:14:44]} {[%emt 00:00:06]} O-O {[%clk 00:14:53]} {[%emt 00:00:07]} 9. O-O
{[%clk 00:14:46]} {[%emt 00:00:02]} b6 {[%clk 00:14:53]} {[%emt 00:00:05]} 10.
Be3 {[%clk 00:14:05]} {[%emt 00:00:45]} Bb7 {[%clk 00:14:55]} {[%emt 00:00:03]}
11. Qd2 {[%clk 00:14:06]} {[%emt 00:00:04]} Nbc6 {[%clk 00:14:41]} {[%emt
00:00:19]} 12. Bh6 {[%clk 00:14:03]} {[%emt 00:00:07]} Rc8 {[%clk 00:14:15]}
{[%emt 00:00:32]} 13. Rac1 {[%clk 00:13:56]} {[%emt 00:00:13]} d5 {[%clk
00:13:59]} {[%emt 00:00:21]} 14. e5 {[%clk 00:13:50]} {[%emt 00:00:10]} Nf5
{[%clk 00:14:02]} {[%emt 00:00:02]} 15. Bxg7 {[%clk 00:13:50]} {[%emt
00:00:05]} Kxg7 {[%clk 00:13:59]} {[%emt 00:00:07]} 16. Rfd1 {[%clk 00:13:32]}
{[%emt 00:00:23]} Qe7 {[%clk 00:13:47]} {[%emt 00:00:17]} 17. Qf4 {[%clk
00:12:35]} {[%emt 00:01:02]} Qb4 {[%clk 00:13:06]} {[%emt 00:00:46]} 18. Rd2
{[%clk 00:11:49]} {[%emt 00:00:52]} f6 {[%clk 00:11:24]} {[%emt 00:01:47]} 19.
exf6+ {[%clk 00:11:03]} {[%emt 00:00:51]} Rxf6 {[%clk 00:11:22]} {[%emt
00:00:06]} 20. a3 {[%clk 00:11:02]} {[%emt 00:00:07]} Qe7 {[%clk 00:11:16]}
{[%emt 00:00:09]} 21. Qh2 {[%clk 00:10:57]} {[%emt 00:00:11]} Na5 {[%clk
00:11:04]} {[%emt 00:00:18]} 22. Re1 {[%clk 00:10:51]} {[%emt 00:00:10]} Nb3
{[%clk 00:10:51]} {[%emt 00:00:17]} 23. Rdd1 {[%clk 00:10:52]} {[%emt
00:00:05]} Rcf8 {[%clk 00:10:21]} {[%emt 00:00:35]} 24. Qe5 {[%clk 00:09:27]}
{[%emt 00:01:30]} Na5 {[%clk 00:09:51]} {[%emt 00:00:35]} 25. Bf1 {[%clk
00:08:19]} {[%emt 00:01:13]} Qd7 {[%clk 00:09:02]} {[%emt 00:00:54]} 26. Bb5
{[%clk 00:08:06]} {[%emt 00:00:19]} Bc6 {[%clk 00:08:55]} {[%emt 00:00:11]} 27.
Bd3 {[%clk 00:08:08]} {[%emt 00:00:03]} Nc4 {[%clk 00:08:41]} {[%emt 00:00:19]}
28. Bxc4 {[%clk 00:07:41]} {[%emt 00:00:33]} dxc4 {[%clk 00:08:44]} {[%emt
00:00:01]} 29. Ng5 {[%clk 00:07:44]} {[%emt 00:00:02]} Re8 {[%clk 00:05:17]}
{[%emt 00:03:32]} 30. Nxh7 {[%clk 00:07:01]} {[%emt 00:00:48]} Nh4 {[%clk
00:04:21]} {[%emt 00:01:00]} 31. Nxf6 {[%clk 00:06:58]} {[%emt 00:00:09]} Qf7
{[%clk 00:03:45]} {[%emt 00:00:41]} 32. Nxe8+ {[%clk 00:06:55]} {[%emt
00:00:07]} 1-0